[Event "USA-ch Women 2024"]
[Site "Saint Louis"]
[Date "2024.10.11"]
[Round "1.6"]
[White "Yip, Carissa"]
[Black "Cervantes Landeiro, Thalia"]
[Result "1-0"]
[ECO "D34"]
[WhiteElo "2418"]
[BlackElo "2302"]
[Annotator "TA"]
[PlyCount "87"]
[EventDate "2024.10.09"]
[EventType "tourn"]
[EventCountry "USA"]
[SourceTitle "playchess.com"]
[Source "ChessBase"]
[SourceQuality "1"]
[TimeControl "40/5400+30:1800+30"]

{[%evp 26,87,22,14,20,8,27,12,35,29,44,33,26,16,17,21,76,71,73,75,125,106,145,149,145,145,148,119,135,148,142,143,151,157,234,229,227,206,279,276,286,283,281,284,499,474,534,516,636,644,667,665,689,686,683,577,1722,1543,4827,4134,1450,1276,1131,1106]} 1. c4 {[%emt 0:00:02]} e6 {[%emt 0:01:36]} 2. g3 {[%emt 0:00:48]} d5 {[%emt 0:00:23]} 3. Bg2 {[%emt 0:00:05]} Nf6 {[%emt 0:01:20]} 4. Nf3 {[%emt 0:00:10]} c5 {[%emt 0:00:36]} 5. O-O {[%emt 0:06:07]} Nc6 {[%emt 0:00:58]} 6. d4 {[%emt 0:03:12]} Be7 {[%emt 0:03:48]} 7. cxd5 {[%emt 0:03:09]} exd5 {[%emt 0:00:09]} 8. dxc5 {[%emt 0:05:37]} Bxc5 {[%emt 0:00:24]} 9. Bg5 {[%emt 0:01:28]} O-O {[%emt 0:04:39]} 10. Nc3 {[%emt 0:02:04]} d4 {[%emt 0:08:37]} 11. Bxf6 {[%emt 0:06:05]} Qxf6 {[%emt 0:00:14]} 12. Ne4 {[%emt 0:00:02]} Qe7 {[%emt 0:00:14]} 13. Nxc5 {[%emt 0:00:04]} Qxc5 {[%emt 0:00:06]} 14. Rc1 {[%emt 0:00:04]} Qb6 {[%emt 0:00:36]} 15. b3 {[%emt 0:09:09]} Re8 {[%emt 0:10:05]} 16. Qc2 {[%emt 0:16:23]} h6 {[%emt 0:07:54] Dodges Ng5. The position is equal.} 17. Rfd1 {[%emt 0:00:04]} Bg4 {[%emt 0:04:40]} 18. Rd2 {[%emt 0:07:10]} Rad8 {[%emt 0:07:49][%cal Oe8e2]} 19. Qc5 {[%emt 0:03:45]} Qxc5 {[%emt 0:18:07]} 20. Rxc5 {[%emt 0:00:04]} Re7 {[%emt 0:06:55]} (20... d3 $11 21. Rxd3 (21. exd3 $2 Nd4 $19) 21... Rxe2 22. Rxd8+ Nxd8) 21. h3 $16 {[%emt 0:01:56] White now steadily converts the win.} Be6 {[%emt 0:00:27]} 22. Ne1 {[%emt 0:01:06][%cal Bf3e1,Be1d3,Bd3e5][%mdl 32]} Red7 {[%emt 0:03:06]} ({Black should play} 22... Rd6) 23. Bxc6 {[%emt 0:02:26]} bxc6 {[%emt 0:03:31]} 24. h4 {[%emt 0:00:14]} (24. Rxc6 Bxh3 25. Nf3 Rd5 $14) 24... Rd6 {[%emt 0:00:31]} 25. Nd3 {[%emt 0:02:35]} Rb8 {[%emt 0:02:39]} 26. Ne5 {[%emt 0:06:15]} Bd5 {[%emt 0:02:23]} 27. Ra5 {[%emt 0:06:27]} Rb7 {[%emt 0:02:23]} 28. Nd3 {[%emt 0:04:10] White is more active.} g5 {[%emt 0:03:06]} 29. f3 {[%emt 0:00:08]} f6 {[%emt 0:04:17]} (29... gxh4 $16 {might work better.} 30. gxh4 Be6) 30. Nc5 $18 {[%emt 0:00:40][%csl LRb7,LRd4]} Re7 {[%emt 0:00:12]} 31. Kf2 {[%emt 0:00:17]} (31. Rxd4 Rxe2 32. Ne4 (32. Rxa7 f5 $11) 32... Re6 $14) 31... f5 {[%emt 0:03:27]} 32. Rxd4 {[%emt 0:00:30]} Rf6 {[%emt 0:00:25]} 33. Rda4 {[%emt 0:02:18]} Rff7 {[%emt 0:00:50]} 34. Nd3 {[%emt 0:00:20]} f4 $2 {[%emt 0:00:28] [#]} (34... Rg7 35. h5 g4) 35. gxf4 {[%emt 0:00:28][%cal Bg3f4,Bf4f5][%mdl 32] White is clearly winning.} gxh4 {[%emt 0:00:21]} 36. e4 {[%emt 0:01:22]} Be6 {[%emt 0:00:43]} 37. f5 {[%emt 0:00:24]} Bc8 {[%emt 0:00:13]} 38. Ne5 {[%emt 0:00:36]} Rf6 {[%emt 0:00:46]} 39. Ng4 {[%emt 0:00:28]} ({Less strong is} 39. Rxa7 Rxe5 40. Rc7 Re8 $16) 39... Rd6 {[%emt 0:00:17]} 40. Rxa7 {[%emt 0:01:13]} Rd2+ {[%emt 0:00:43]} 41. Ke3 {[%emt 0:30:14]} Rxa7 {[%emt 0:02:11]} 42. Rxa7 {[%emt 0:00:00]} Rd8 {[%emt 0:01:09]} 43. Nxh6+ {[%emt 0:00:00]} Kf8 {[%emt 0:00:05]} 44. Rh7 {[%emt 0:00:00] Weighted Error Value: White=0.02 (flawless) /Black=0.34.  Mistake:       	---       	Black=4      Inaccurate:     	---       	Black=2      OK:         	White=14    	Black=7      Best:        	White=3     	---} 1-0